Cogmind - Beta 9 @@@ ROGUE MODE // 2019.10.28 @ 19:30:23 Player: MrPainting Result: Destroyed by Y-54 Guardian with Gatling Laser Performance ------------- Evolutions (4) 2000 Regions Visited (8) 1600 Robots Destroyed (103) 515 Value Destroyed (2743) 2743 Prototype IDs (9) 180 Alien Tech Used (0) 0 Bonus (496) 496 TOTAL SCORE: 7534 Bonus ------- High Alert Combat Kills 292 Follower Combat Kills 204 Cogmind --------- Core Integrity 0/850 Matter 300/300 Energy 99/100 System Corruption 0% Temperature Cool (18) Location -6/Extension Parts ------- Power (1) Propulsion (4) Utility (6) Focal Shield Hacking Suite Weapon (4) Great Maul Inventory (4) Carbon-fiber Leg Matter Compressor (250) Matter Compressor (250) Mini Assault Cannon Peak State ------------ Power Cold Fusion Reactor Propulsion Myomer Leg Myomer Leg Myomer Leg Myomer Leg Utility Improved Heat Shielding Improved Transmission Jammer Improved Maneuvering Thrusters Focal Shield Hacking Suite System Shield Weapon Great Maul Great Maul Ripper Phasing Sabre Inventory Carbon-fiber Leg Matter Compressor Matter Compressor Mini Assault Cannon [Rating: 76] Favorites ----------- Power Fission Core Engine Heavy Ion Engine Power Core Fission Core Reactor Cold Fusion Reactor Propulsion Light Treads Treads Light Treads Leg Myomer Leg Hover Unit Gravmag Array Utility Medium Storage Unit Device Improved Heat Shielding Storage Medium Storage Unit Processor Signal Interpreter Hackware Hacking Suite Protection Improved Light Armor Plating Weapon Cooled Particle Cannon Energy Gun Particle Gun Energy Cannon Cooled Particle Cannon Ballistic Gun Improved Assault Rifle Ballistic Cannon Advanced Assault Cannon Impact Weapon Great Maul Slashing Weapon Phasing Sabre Build | -11 -10 -10 -9 -9 -9 -7 -6 -6 ------- Run | Scr Mat Min Mat Sto Rec Fac Fac Ext Slots Evolved 8 | . . . 2 . . 4 2 . Power . | . . . . . . . . . Propulsion 2 | . . . 2 . . . . . Utility 4 | . . . . . . 2 2 . Weapon 2 | . . . . . . 2 . . Parts Attached 117 | 5 5 6 24 19 . 15 21 22 Power 16 | 1 1 1 6 3 . 1 2 1 Engine 10 | 1 1 1 3 3 . . 1 . Core 4 | . . . 3 . . 1 . . Reactor 2 | . . . . . . . 1 1 Propulsion 41 | 2 2 . 9 7 . 2 8 11 Treads 21 | . 2 . 9 7 . . 3 . Leg 13 | 2 . . . . . . . 11 Wheel . | . . . . . . . . . Hover 7 | . . . . . . 2 5 . Flight . | . . . . . . . . . Utility 22 | . . 3 2 2 . 4 6 5 Device 12 | . . 1 1 . . 1 4 5 Storage 3 | . . . 1 1 . 1 . . Processor 2 | . . 2 . . . . . . Hackware 2 | . . . . 1 . . 1 . Protection 3 | . . . . . . 2 1 . Artifact . | . . . . . . . . . Weapon 38 | 2 2 2 7 7 . 8 5 5 Energy Gun 4 | 1 2 . 1 . . . . . Energy Cannon 8 | . . . 3 . . 5 . . Ballistic Gun 9 | 1 . 1 1 5 . 1 . . Ballistic Cannon 12 | . . 1 2 2 . 2 5 . Launcher . | . . . . . . . . . Special Weapon . | . . . . . . . . . Impact Weapon 2 | . . . . . . . . 2 Slashing Weapon 3 | . . . . . . . . 3 Piercing Weapon . | . . . . . . . . . Special Melee Weapon . | . . . . . . . . . Unidentified Prototypes 7 | . . . 2 . . 2 3 . Parts Lost 43 | . . 8 1 6 . . 2 26 Power 6 | . . 2 . 2 . . . 2 Propulsion 18 | . . 2 . 4 . . 2 10 Utility 10 | . . 1 1 . . . . 8 Weapon 9 | . . 3 . . . . . 6 Highest Loss Streak 13 | . . 8 1 2 . . 2 13 Average Slot Usage (%) 86 | . 71 68 80 93 100 98 83 81 Engine 4 | . 14 10 6 10 11 . . 1 Core 3 | . . . 3 . . 7 5 . Treads 19 | . 16 18 28 38 44 26 . 3 Leg 2 | . 11 . . . . . . 16 Hover 2 | . . . . . . 1 10 . Device 6 | . . 6 3 . . 4 9 17 Storage 7 | . . . 10 11 11 7 6 1 Processor 1 | . . 12 5 . . . . . Hackware 8 | . . . . 10 11 7 13 10 Protection 3 | . . . . . . 9 9 1 Energy Gun 1 | . 19 16 . . . . . . Energy Cannon 8 | . . . 16 . . 20 8 . Ballistic Gun 5 | . 8 1 . 14 22 7 . . Ballistic Cannon 7 | . . 2 4 7 . 2 17 7 Slashing Weapon 1 | . . . . . . . . 8 Naked Turns . | . . . . . . . . . Heaviest Build 54 | 9 13 20 30 25 22 53 54 48 Greatest Support 100 | 20 40 40 80 80 80 80 56 100 Greatest Overweight (x) 14 | . . 2 7 . . . 14 5 Average Overweight (x) . | . . . . . . . . . Largest Inventory Capacity 8 | 4 4 4 8 8 8 8 8 8 Average Capacity 7 | 4 4 4 7 8 8 8 8 5 Most Carried 8 | 4 4 4 8 8 8 8 8 8 Average Carried 6 | 2 3 3 7 7 8 6 7 5 Final Capacity 4 | . . . . . . . . 4 Final Carried 4 | . . . . . . . . 4 Class Distribution -------------------- 27% | Scavenger-Mutant 25% | Mutant 17% | Hacker-Tank 15% | Hacker-Mutant 12% | Scavenger-Tank Dominant Class ---------------- Mutant | -10/Materials Mutant | -10/Mines Scavenger-Mutant | -9/Materials Scavenger-Mutant | -9/Storage Scavenger-Mutant | -9/Recycling Scavenger-Tank | -7/Factory Hacker-Tank | -6/Factory Hacker-Mutant | -6/Extension Resources | -11 -10 -10 -9 -9 -9 -7 -6 -6 ----------- Run | Scr Mat Min Mat Sto Rec Fac Fac Ext Matter Collected 3440 | 149 . 162 282 640 174 245 1060 728 Remotely 621 | . . . . . . . 580 41 Salvage Created 4282 | . . 1 753 1184 390 577 688 689 Parts 221 | . . . 59 72 22 23 26 19 Haulers Intercepted 12 | . . . 3 4 . 2 3 . Recyclers Shooed 2 | . . . 1 . 1 . . . Parts Field Recycled . | . . . . . . . . . Retrieved Matter . | . . . . . . . . . Parts Self-Destructed . | . . . . . . . . . Prevented . | . . . . . . . . . Kills | -11 -10 -10 -9 -9 -9 -7 -6 -6 ------- Run | Scr Mat Min Mat Sto Rec Fac Fac Ext Combat Hostiles Destroyed 57 | . . 1 12 16 6 5 7 10 Melee 8 | . . . . . . . . 8 Guns 18 | . . . . 10 6 2 . . Cannons 30 | . . 1 12 6 . 2 7 2 Classes Destroyed 15 | . . 1 8 1 1 . 3 1 Worker 10 | . . . 3 6 . . 1 . Builder 4 | . . . 1 . . . 2 1 Tunneler 1 | . . . 1 . . . . . Hauler 12 | . . . 3 4 . 2 3 . Recycler 9 | . . . . 3 4 1 . 1 Mechanic 1 | . . . . . . . 1 . Operator 3 | . . . 2 . . . 1 . Drone 6 | . . . . . 6 . . . Watcher 6 | . . . 1 1 . 2 2 . Grunt 26 | . . . 9 6 . 2 3 6 Brawler 1 | . . . . . . . 1 . Sentry 20 | . . . 3 10 . 3 2 2 Programmer 1 | . . . . . . . 1 . Assembled 1 | . . 1 . . . . . . Savage 1 | . . . . . . . . 1 Butcher 1 | . . . . . . . . 1 Best Kill Streak 8 | . . 1 4 8 7 3 5 2 Combat Bots Only 3 | . . 1 3 3 2 2 3 2 Max Kills in Single Turn 2 | . . 1 2 2 1 1 1 1 Gunslinging . | . . . . . . . . . Exploded . | . . . . . . . . . Melee 1 | . . . . . . . . 1 Uniques/NPCs Destroyed . | . . . . . . . . . Combat | -11 -10 -10 -9 -9 -9 -7 -6 -6 -------- Run | Scr Mat Min Mat Sto Rec Fac Fac Ext Damage Taken 6518 | . . 840 422 1285 . 297 1032 2642 Core 1201 | . . 128 76 115 . 30 228 624 Absorbed by Shields 105 | . . . . . . . . 105 Core Remaining (%) 73 | 100 . 48 . . 52 95 . . Volleys Fired 212 | . . 3 43 72 23 18 44 9 Largest 4 | . . 1 2 2 2 4 4 4 Hottest 192 | . . 57 150 80 46 126 192 192 Shots Fired 519 | . . 3 85 144 46 72 138 31 Gun 147 | . . 1 . 88 46 12 . . Cannon 372 | . . 2 85 56 . 60 138 31 Launcher . | . . . . . . . . . Special . | . . . . . . . . . Kinetic 336 | . . 3 18 144 46 16 78 31 Thermal 183 | . . . 67 . . 56 60 . Explosive . | . . . . . . . . . Electromagnetic . | . . . . . . . . . Robot Hit Streak 14 | . . 1 10 14 7 14 11 14 Robot Miss Streak 5 | . . 2 3 2 4 3 5 3 Penetration Max . | . . . . . . . . . Secondary Targets 1 | . . . . 1 . . . . Max Gunslinging Chain 1 | . . . . 1 . . . . Shots Hit Robots 353 | . . 1 53 102 24 36 73 64 Core Hits 141 | . . 1 25 42 11 16 27 19 Critical Hits 10 | . . 1 3 2 1 1 . 2 Critical Kills 4 | . . 1 . 2 . . . 1 Critical Parts Destroyed 5 | . . . 2 . 1 1 . 1 Melee Attacks 54 | . . . . . . . . 54 Impact 8 | . . . . . . . . 8 Slashing 46 | . . . . . . . . 46 Piercing . | . . . . . . . . . Sneak Attacks 12 | . . . . . . . . 12 Combat Hostiles . | . . . . . . . . . Follow-up Attacks 11 | . . . . . . . . 11 Damage Inflicted 9165 | . . 31 1272 1792 378 799 1906 2987 Guns 1434 | . . 14 . 919 378 123 . . Cannons 5197 | . . 17 1270 873 . 635 1906 496 Explosions 41 | . . . . . . 41 . . Melee 2491 | . . . . . . . . 2491 Ramming 2 | . . . 2 . . . . . Kinetic 4205 | . . 31 145 1792 378 161 1202 496 Thermal 2426 | . . . 1125 . . 597 704 . Explosive . | . . . . . . . . . Electromagnetic 41 | . . . . . . 41 . . Impact 190 | . . . . . . . . 190 Slashing 2301 | . . . . . . . . 2301 Piercing . | . . . . . . . . . Highest Corruption 1 | . . . . . . 1 . . Average Corruption 1 | . . . . . . 1 . . Corruption Purged . | . . . . . . . . . Effects 1 | . . . . . . 1 . . Data Loss (minor) 1 | . . . . . . 1 . . Overload Shots . | . . . . . . . . . Overflow Damage 504 | . . . . 17 . 24 18 445 Projectiles 59 | . . . . 17 . 24 18 . Explosions . | . . . . . . . . . Melee 445 | . . . . . . . . 445 Knockbacks 23 | . . . 1 9 . . 5 8 Impact . | . . . . . . . . . Kinetic 22 | . . . 1 9 . . 5 7 Secondary 1 | . . . . . . . . 1 Self-Inflicted Damage 24 | . . . . . . 24 . . Shots 1 | . . . . . . 1 . . Rammed 1 | . . . 1 . . . . . Targets Rammed 1 | . . . 1 . . . . . Kicked . | . . . . . . . . . Crushed . | . . . . . . . . . Highest Temperature 571 | . . 36 476 249 . 246 571 330 Average Temperature 113 | . . 21 124 60 . 79 153 114 Received Heat Transfer 1626 | . . . 186 489 . 96 162 693 Effects 29 | . . . 9 . . 4 16 . Shutdowns 3 | . . . 1 . . . 2 . Energy Bleed 2 | . . . . . . 1 1 . Interference 6 | . . . 1 . . 3 2 . Matter Decay 1 | . . . . . . . 1 . Short Circuit 2 | . . . 1 . . . 1 . Damage (minor) 4 | . . . . . . . 4 . Damage (major) 10 | . . . 6 . . . 4 . Damage (core) 1 | . . . . . . . 1 . Siege Activations . | . . . . . . . . . Robots Corrupted . | . . . . . . . . . Combat Hostiles . | . . . . . . . . . Parts Fried . | . . . . . . . . . Impact Corruptions . | . . . . . . . . . Robots Melted 2 | . . . . . . 1 1 . Combat Hostiles 1 | . . . . . . 1 . . Parts Melted 10 | . . . 2 . . 3 5 . Heat Transferred 3441 | . . . 1665 . . 814 962 . Parts Sabotaged . | . . . . . . . . . Parts Stolen . | . . . . . . . . . Parts Stripped . | . . . . . . . . . Power Chain Reactions . | . . . . . . . . . Missiles Intercepted . | . . . . . . . . . Alert | -11 -10 -10 -9 -9 -9 -7 -6 -6 ------- Run | Scr Mat Min Mat Sto Rec Fac Fac Ext Peak Influence 1192 | . . 15 287 490 329 1192 604 333 Average Influence 391 | . . . 110 354 257 1058 496 235 Maximum Alert Level 4 | . . . 1 2 1 4 2 1 Low Security (%) 29 | . . . . . . . . . Level 1 27 | . . . . . . . . . Level 2 29 | . . . . . . . . . Level 3 10 | . . . . . . . . . Level 4 3 | . . . . . . . . . Level 5 . | . . . . . . . . . High Security . | . . . . . . . . . Max Security . | . . . . . . . . . Squads Dispatched 9 | . . . 2 3 . . 4 . Investigation 1 | . . . 1 . . . . . Extermination 1 | . . . . . . . 1 . Reinforcement 4 | . . . 1 . . . 3 . Assault . | . . . . . . . . . Garrison 3 | . . . . 3 . . . . Intercept . | . . . . . . . . . Construction Impeded . | . . . . . . . . . Haulers Reinforced 1 | . . . . . . . 1 . Stealth | -11 -10 -10 -9 -9 -9 -7 -6 -6 --------- Run | Scr Mat Min Mat Sto Rec Fac Fac Ext Distress Signals 4 | . . . 1 2 . 1 . . Communications Jammed . | . . . . . . . . . Distress Signals . | . . . . . . . . . Times Spotted 116 | . . 22 19 20 13 8 15 19 Peak Tracking Total 17 | . . 17 5 4 5 2 5 5 Tactical Retreats 9 | . . 1 1 1 . . 3 3 Traps | -11 -10 -10 -9 -9 -9 -7 -6 -6 ------- Run | Scr Mat Min Mat Sto Rec Fac Fac Ext Traps Triggered 7 | . . . 1 3 . . 2 1 Indirectly . | . . . . . . . . . Trap Hack Attempts . | . . . . . . . . . Triggered . | . . . . . . . . . Disarmed . | . . . . . . . . . Reprogrammed . | . . . . . . . . . Reused . | . . . . . . . . . Traps Extracted . | . . . . . . . . . Installed . | . . . . . . . . . Triggered . | . . . . . . . . . Machines | -11 -10 -10 -9 -9 -9 -7 -6 -6 ---------- Run | Scr Mat Min Mat Sto Rec Fac Fac Ext Machines Disabled 12 | . . . 1 3 2 3 3 . Max in Single Turn 1 | . . . 1 1 1 1 1 . Machines Sabotaged . | . . . . . . . . . Garrisons Compromised . | . . . . . . . . . Overloaded Fab Kills . | . . . . . . . . . Fab Network Shutdowns . | . . . . . . . . . Hacking | -11 -10 -10 -9 -9 -9 -7 -6 -6 --------- Run | Scr Mat Min Mat Sto Rec Fac Fac Ext Machines Accessed 27 | . . . 7 6 3 3 4 4 Terminals 19 | . . . 5 5 2 . 3 4 Fabricators . | . . . . . . . . . Repair Stations 2 | . . . 1 1 . . . . Recycling Units 4 | . . . . . 1 3 . . Scanalyzers 2 | . . . 1 . . . 1 . Garrison Access . | . . . . . . . . . Total Hacks 63 | . . . 17 14 9 3 10 10 Successful 42 | . . . 10 11 5 2 8 6 Failed 21 | . . . 7 3 4 1 2 4 Catastrophic 2 | . . . . . . 1 1 . Database Lockouts . | . . . . . . . . . Manual 33 | . . . 8 10 5 . 7 3 Terminals 50 | . . . 12 12 8 . 8 10 Fabricators . | . . . . . . . . . Repair Stations 4 | . . . 2 2 . . . . Recycling Units 4 | . . . . . 1 3 . . Scanalyzers 5 | . . . 3 . . . 2 . Garrison Access . | . . . . . . . . . Terminal Hacks 12 | . . . 3 3 1 . 1 4 Robot Schematic 1 | . . . . . . . . 1 Prototype ID Bank 1 | . . . . 1 . . . . Open Door 3 | . . . . 1 . . . 2 Machine Index 1 | . . . . . . . . 1 Terminal Index 1 | . . . 1 . . . . . Repair Station Index 1 | . . . 1 . . . . . Alert Level 1 | . . . . . 1 . . . Recall Reinforcements 1 | . . . 1 . . . . . Hauler Manifests 1 | . . . . 1 . . . . Zone Layout 1 | . . . . . . . 1 . Fabricator Hacks . | . . . . . . . . . Repair Station Hacks 4 | . . . 2 2 . . . . Scan Component 2 | . . . 1 1 . . . . Repair 2 | . . . 1 1 . . . . Recycling Unit Hacks 3 | . . . . . 1 2 . . Report Inventory 1 | . . . . . 1 . . . Retrieve Components 2 | . . . . . . 2 . . Scanalyzer 4 | . . . 2 . . . 2 . Insert Component 2 | . . . 1 . . . 1 . Analyze 2 | . . . 1 . . . 1 . Garrison Access Hacks . | . . . . . . . . . Unauthorized Hacks 51 | . . . 11 15 8 . 12 5 Terminals 19 | . . . 3 6 3 . 5 2 Track 7 | . . . 1 2 1 . 2 1 Assimilate 3 | . . . . 2 1 . . . Botnet 9 | . . . 2 2 1 . 3 1 Fabricators . | . . . . . . . . . Repair Stations . | . . . . . . . . . Recycling Units . | . . . . . . . . . Scanalyzers . | . . . . . . . . . Garrison Access . | . . . . . . . . . Data Cores Recovered 2 | . . . 1 . . . 1 . Used . | . . . . . . . . . Hacking Detections 17 | . . . 5 3 2 2 3 2 Full Trace Events 2 | . . . 1 . 1 . . . Feedback Events . | . . . . . . . . . Feedback Blocked . | . . . . . . . . . Robot Schematics Acquired 1 | . . . . . . . . 1 Robots Built . | . . . . . . . . . Matter . | . . . . . . . . . Time . | . . . . . . . . . Total Robot Build Rating . | . . . . . . . . . Part Schematics Acquired 1 | . . . . . . . 1 . Parts Built . | . . . . . . . . . Matter . | . . . . . . . . . Time . | . . . . . . . . . Total Part Build Rating . | . . . . . . . . . Parts Repaired 2 | . . . 1 1 . . . . Time 101 | . . . 50 51 . . . . Parts Recycled . | . . . . . . . . . Recycled Matter . | . . . . . . . . . Retrieved Matter . | . . . . . . . . . Retrieved Components 2 | . . . . . . 2 . . Parts Scanalyzed 2 | . . . 1 . . . 1 . Part Schematics Acquired 1 | . . . . . . . 1 . Parts Damaged . | . . . . . . . . . Bothacking | -11 -10 -10 -9 -9 -9 -7 -6 -6 ------------ Run | Scr Mat Min Mat Sto Rec Fac Fac Ext Used RIF Installer . | . . . . . . . . . Robots Hacked . | . . . . . . . . . Non-combat . | . . . . . . . . . Combat . | . . . . . . . . . Robot Hacks Applied . | . . . . . . . . . Relay Couplers Released . | . . . . . . . . . Robots Rewired . | . . . . . . . . . Allies Hacked . | . . . . . . . . . Hacks Repelled . | . . . . . . . . . Allies | -11 -10 -10 -9 -9 -9 -7 -6 -6 -------- Run | Scr Mat Min Mat Sto Rec Fac Fac Ext Total Allies 2 | . . . . . . . . 2 Largest Group 2 | . . . . . . . . 2 Highest-Rated Group 181 | . . . . . . . . 181 Highest-Rated Ally 156 | . . . . . . . . 156 Total Orders . | . . . . . . . . . Ally Attacks 18 | . . . . . . . . 18 Total Damage 1146 | . . . . . . . . 1146 Kills 6 | . . . . . . . . 6 Allies Corrupted . | . . . . . . . . . Allies Melted . | . . . . . . . . . Intel | -11 -10 -10 -9 -9 -9 -7 -6 -6 ------- Run | Scr Mat Min Mat Sto Rec Fac Fac Ext Robot Analysis Total . | . . . . . . . . . Derelict Logs Recovered . | . . . . . . . . . Drone Launches . | . . . . . . . . . Drone Recoveries . | . . . . . . . . . Exploration | -11 -10 -10 -9 -9 -9 -7 -6 -6 ------------- Run | Scr Mat Min Mat Sto Rec Fac Fac Ext Turns Passed 4907 | 45 144 135 945 785 308 688 1124 733 Spaces Moved 2845 | 41 94 92 405 299 149 353 1045 367 Core 121 | 21 . 37 32 . . . 20 11 Treads 1329 | . 47 55 373 299 149 273 30 103 Legs 320 | 20 47 . . . . . . 253 Wheels . | . . . . . . . . . Hover 1075 | . . . . . . 80 995 . Flight . | . . . . . . . . . Fastest Speed 50 | 50 120 50 50 160 160 56 56 100 Average Speed 119 | 84 140 127 160 160 160 136 74 133 Slowest Speed 750 | 120 160 160 400 160 160 160 750 300 Overloaded Moves . | . . . . . . . . . Propulsion Burnouts . | . . . . . . . . . Robots Hopped . | . . . . . . . . . Cave-ins Triggered . | . . . . . . . . . Exploration Rate (%) 26 | 3 13 18 37 60 38 6 23 44 Regions Visited 8 Branch Regions 4 Pre-discovered Areas . | . . . . . . . . . Known Exits Taken 1 | . . 1 . . . . . . Unknown Exits Taken 7 | 1 1 . 1 1 1 1 1 . Scrap Searched 1 | . . 1 . . . . . . Spaces Dug . | . . . . . . . . . Terrain Destroyed 52 | . . 2 21 2 . 7 18 2 Melee . | . . . . . . . . . Projectile 52 | . . 2 21 2 . 7 18 2 AOE . | . . . . . . . . . Actions | -11 -10 -10 -9 -9 -9 -7 -6 -6 --------- Run | Scr Mat Min Mat Sto Rec Fac Fac Ext Total 3837 | 51 106 103 615 460 173 520 1291 518 Wait 474 | . . . 108 58 2 98 141 67 Move 2837 | 40 93 91 404 298 148 352 1044 367 Hop . | . . . . . . . . . Pick Up 76 | 6 5 2 18 3 . 17 18 7 Fast Attach 42 | 1 . 4 8 9 . 1 7 12 Attach 32 | 4 . 1 7 . . 7 6 7 Detach 5 | . . . . . . 2 2 1 Swap 43 | . 5 1 9 10 . 7 8 3 Drop 74 | . 3 1 17 10 . 18 21 4 Fire 212 | . . 3 43 72 23 18 44 9 Melee 41 | . . . . . . . . 41 Ram . | . . . . . . . . . Kick . | . . . . . . . . . Crush 1 | . . . 1 . . . . . Escape Stasis . | . . . . . . . . . Rewire . | . . . . . . . . . Trap . | . . . . . . . . . Miscellaneous . | . . . . . . . . . Route ------- -11/Scrapyard -10/Materials -10/Mines -9/Materials -9/Storage (discovered 2 exits: [*Mat] / *Rec) -9/Recycling -7/Factory -6/Factory -6/Extension History --------- Turn | Location | Event 19 | -11/Scrapyard | Discovered new exit (range 16) 46 | -11/Scrapyard | Entered Materials 73 | -10/Materials | Discovered new exit (range 9) 190 | -10/Materials | Entered Mines 192 | -10/Mines | Found a hidden stash of uninstalled traps 239 | -10/Mines | Assembled infested the area 244 | -10/Mines | Assisted by a Guerilla fighting off Assembled 310 | -10/Mines | Core integrity fell below 50% 311 | -10/Mines | Build established: Mutant 312 | -10/Mines | Discovered new exit (range 5) 315 | -10/Mines | Identified exit to Materials 325 | -10/Mines | Entered Materials 325 | -9/Materials | Evolved 2 slots: Propulsion x2 340 | -9/Materials | Lost 8 parts (2p2n1u3w) 837 | -9/Materials | Build established: Scavenger-Mutant 1116 | -9/Materials | Discovered new exit (range 10) 1192 | -9/Materials | Repaired Fission Core 1270 | -9/Materials | Entered Storage 1375 | -9/Storage | Build established: Mutant 1499 | -9/Storage | Garrison activated, responded to threat 1875 | -9/Storage | Discovered new exit (range 14) 1950 | -9/Storage | Build established: Scavenger-Mutant 1961 | -9/Storage | Repaired Imp. Assault Rifle 2050 | -9/Storage | Used back door to open Recycling access 2050 | -9/Storage | Discovered new exit (range 4) 2055 | -9/Storage | Entered Recycling 2104 | -9/Recycling | Spotter reported a threat 2124 | -9/Recycling | Spotter reported a threat 2128 | -9/Recycling | Spotter reported a threat 2134 | -9/Recycling | Spotter reported a threat 2139 | -9/Recycling | Spotter reported a threat 2156 | -9/Recycling | Spotter reported a threat 2157 | -9/Recycling | Spotter reported a threat 2187 | -9/Recycling | Spotter reported a threat 2189 | -9/Recycling | Spotter reported a threat 2201 | -9/Recycling | Spotter reported a threat 2211 | -9/Recycling | Spotter reported a threat 2311 | -9/Recycling | Spotter reported a threat 2320 | -9/Recycling | Spotter reported a threat 2331 | -9/Recycling | Spotter reported a threat 2342 | -9/Recycling | Discovered new exit (range 14) 2363 | -9/Recycling | Entered Factory 2363 | -7/Factory | Evolved 4 slots: Utility x2, Weapon x2 2655 | -7/Factory | Build established: Scavenger-Tank 3019 | -7/Factory | Discovered new exit (range 3) 3051 | -7/Factory | Entered another Factory area 3051 | -6/Factory | Evolved 2 slots: Utility x2 3383 | -6/Factory | Build established: Hacker-Tank 3816 | -6/Factory | Spotted B-75 Beast 4153 | -6/Factory | Discovered new exit (range 13) 4162 | -6/Factory | Build established: Hacker-Mutant 4175 | -6/Factory | Entered Extension 4411 | -6/Extension | Core integrity fell below 50% 4441 | -6/Extension | Lost 13 parts (1p5n4u3w) 4703 | -6/Extension | Rescued A7 4726 | -6/Extension | Lost 3 parts (1n2u) 4786 | -6/Extension | Rescued a captive Derelict 4848 | -6/Extension | Spotted B-75 Beast 4869 | -6/Extension | Spotted B-75 Beast 4875 | -6/Extension | Disrupted transfer network 4891 | -6/Extension | Allies destroyed B-75 Beast 4902 | -6/Extension | Core integrity fell below 20% 4908 | -6/Extension | Destroyed by Y-54 Guardian with Gatling Laser Last Messages --------------- 04894_ A7: "I've done al##MISSION::FAILED##" 04894_ A7 destroyed. 04894_ Imp. Heat Shielding destroyed. 04894_ Myomer Leg destroyed. 04895_ U-05 Engineer builds a Wall. 04898_ Phasing Sabre destroyed. 04898_ Knocked back. 04898_ Myomer Leg destroyed. 04901_ Phasing Sabre destroyed. 04901_ Machine disabled. 04902_ U-05 Engineer lays Concrete. 04904_ Flexi-carbon Leg destroyed. 04904_ Knocked back. 04904_ Ripper destroyed. 04905_ U-05 Engineer lays Concrete. 04905_ Cold Fusion Reactor destroyed. 04905_ Imp. Transmission Jammer destroyed. 04906_ U-05 Engineer lays Concrete. 04907_ Knocked back. 04908_ U-05 Engineer lays Concrete. Map ----- +----------------------------------------------------+ | ##### " = ###### T#?????????????????????????? | | #= """"## ####???????????????????????? | | ###### ## " #???????????????????????? | | ?????# ## " #???????????????????????? | | ?????# ###"""" " #???????????????????????? | | ###### % #???????????????????????? | | ##"""""###### #???????????????????????? | | # #?# #???????????????????????? | | + #?# #???????????????????????? | | ######### #?# #???????????????????????? | | ????????# #?# #???????????????????????? | | ????????###########?# #???????????????????????? | | ????????????????????# #???????????????????????? | | ????????????????#####+## #???????????????????????? | | ????????????????# =% #=#???????????????????????? | | ????????????????# % #!#???????????????????????? | | ????????????????# =+!#???????????????????????? | | ????????????????# == #=#???????????????????????? | | ????????????????# #%#???????????????????????? | | ????????????????# #*#???????????????????????? | | ????????????????########/#???????????????????????? | | ???????????????????????#!#####?##???#????????????? | | ?????????????????????###*##% ## ### ##???????????? | | ????????????????????##$%%*%Y " ""#??????????? | | ????????????????????## =!=[ " " #??????????? | | ????????????????????## =@ #??????????? | | ?????????????????????# #??????????? | | ?????????????????????# %! #??????????? | | ??????????????? =BB ??????? | | ???????????? BB ??????? | | ????????????? u!!w ???????? | | ????????????? =!%] ???????? | | ????????????? R [!= Ak kA ????????? | | ?????????????######### ] ###????????? | | ?????????????????????# #??????????? | | ?????????????????????# #??????????? | | ?????????????????????# #??????????? | | ?????????????????????# #??????????? | | ?????????????????????######T#"""#######??????????? | | ???????????????????????????#?????????????????????? | | ?????????????????????????????????????????????????? | | | | | | | | | | | | | | | | | | | +----------------------------------------------------+ Best States ------------- Heat Dissipation 56 Energy Generation 18 Energy Capacity 310 Matter Stores 300 Matter Capacity 300 Sight Range 16 Robot Scan Range 13 Terrain Scan Density 10 Jamming Range 12 Heat Shielding 100 Armor Coverage 150 Resistance: KI 20 Resistance: EM 25 Weapon Shielding 66 Evasion (%) 53 Targeting Accuracy 5 Recoil Reduction 4 Offensive Hacking 10 Defensive Hacking 10 Item Schematics ----------------- Med. Treads | -6/Factory | Scanalyzed Robot Schematics ------------------ G-50 Soldier | -6/Extension | Hacked Fabricated ------------ Nothing Alien Tech Used ----------------- None Achievements -------------- Prison Break Challenges ------------ None Game ------ Seed ReclamationBeamDisintegrator Manual? 0 Play Time 01:09:48 Cumulative 45.1 hours Start 2019.10.28 @ 18:21:40 End 2019.10.28 @ 19:30:23 Sessions 2 Manual Loads 0 Difficulty Rogue Special Mode None Game No. 72 Rogue 72 Adventurer 0 Explorer 0 Win Type - Total 0 Types 0/0/0/0/0/0/0 Lore% 27 Gallery% 34 Achievement% 26 Wizard Run 0 Options --------- ASCII 0 Keyboard 0 Movement Mouse Keybinds 0 Fullscreen 1 Font 18/SmallcapsGlow Map View 76x50 Tactical HUD 1 Map Filters NONE Filters NONE Steam 1 RUN: 5746f4a9-1c54-48b6-8a47-1d3b54115b3d